[Event "2nd Serbia Open Masters 2022"]
[Site "Novi Sad"]
[Date "2022.06.28"]
[Round "1.9"]
[White "Bernadskiy, Vitaliy"]
[Black "Koutlas, Nikolaos"]
[Result "1-0"]
[ECO "D35"]
[WhiteElo "2636"]
[BlackElo "2251"]
[Annotator "TA"]
[PlyCount "129"]
[EventDate "2022.06.28"]
[EventType "swiss"]
[EventCountry "SRB"]
[SourceTitle "playchess.com"]
[Source "ChessBase"]
[SourceQuality "1"]
[TimeControl "40/5400+30:900+30"]

{[%evp 18,129,18,0,25,0,0,0,0,0,0,0,6,-13,-19,-26,-20,-25,-34,-107,-108,-137,-21,-14,-21,-20,0,-21,-18,-22,0,0,0,0,0,0,0,0,0,0,0,0,0,0,0,0,0,0,0,-4,0,0,0,0,0,0,0,0,0,0,0,0,0,0,14,14,21,4,30,12,43,21,80,82,80,80,81,80,127,133,126,83,210,202,473,492,618,257,297,296,1437,1446,1431,1575,1340,1108,859,395,1545,1430,1350,1097,1430,1237,1187,1184,1045,956,6118,1414,29985,29985,29987,29988]} 1. c4 {[%emt 0:00:04]} e6 {[%emt 0:00:10]} 2. Nc3 {[%emt 0:00:23]} d5 {[%emt 0:00:07]} 3. d4 {[%emt 0:00:03]} Nf6 {[%emt 0:00:07]} 4. cxd5 {[%emt 0:00:26]} exd5 {[%emt 0:00:06]} 5. Bg5 {[%emt 0:00:04]} c6 {[%emt 0:00:11]} 6. e3 {[%emt 0:00:24]} Bd6 {[%emt 0:00:33]} 7. Bd3 {[%emt 0:00:33]} O-O {[%emt 0:00:33]} 8. Qc2 {[%emt 0:02:33]} h6 {[%emt 0:00:44]} 9. Bh4 {[%emt 0:00:10]} Re8 {[%emt 0:02:14]} 10. Nf3 {[%emt 0:02:52]} a5 {[%emt 0:09:05] D35: Queen's Gambit Declined: Exchange Variation.} 11. Bg3 $5 {[%emt 0:00:48][%mdl 4] [#] An interesting side line.} Bxg3 $146 {[%emt 0:03:42]} ({Predecessor:} 11... Na6 12. a3 Nc7 13. O-O Ne6 14. Ne5 Nf8 15. f4 Ng4 16. Qe2 Nf6 17. Bh4 Be7 18. Rae1 {0-1 (46) Bluebaum,M (2673)-Xiong,J (2688) Chess.com INT 2022}) 12. hxg3 {[%emt 0:00:05]} Qe7 {[%emt 0:08:34] The position is equal.} 13. Rh4 {[%emt 0:03:41]} Na6 {[%emt 0:03:42]} 14. a3 {[%emt 0:04:44] Inhibits Nb4.} c5 {[%emt 0:01:20]} 15. Kf1 {[%emt 0:02:13]} c4 {[%emt 0:08:41]} 16. Bf5 {[%emt 0:01:36]} Nc7 {[%emt 0:03:48]} 17. Bxc8 {[%emt 0:03:29]} Raxc8 {[%emt 0:00:27]} 18. Re1 {[%emt 0:02:34]} (18. a4 $15) 18... b5 $1 $17 {[%emt 0:08:45]} 19. e4 {[%emt 0:00:05]} Nxe4 {[%emt 0:00:18]} (19... b4 $1 $17 {[%cal Rb4c3]} 20. Nxd5 Ncxd5 21. exd5 Qd8) 20. Nxe4 $11 {[%emt 0:06:35]} dxe4 {[%emt 0:00:14]} 21. Rhxe4 {[%emt 0:01:30]} Qd6 {[%emt 0:04:56]} 22. a4 {[%emt 0:03:21]} Rxe4 {[%emt 0:01:37]} 23. Rxe4 {[%emt 0:00:10]} Qb4 {[%emt 0:02:23]} 24. Re5 {[%emt 0:00:54] Hoping for Rc5.} Rb8 {[%emt 0:07:04]} 25. Rc5 {[%emt 0:01:18]} Ne6 {[%emt 0:12:00]} 26. Rxb5 {[%emt 0:03:20]} Rxb5 {[%emt 0:00:05]} 27. axb5 {[%emt 1:00:05]} Qxb5 {[%emt 0:00:05][%mdl 4096] Endgame aiming for ...c3+. KQN-KQN} 28. Qc3 {[%emt 0:00:00]} Qd5 {[%emt 0:00:36]} 29. Nd2 {[%emt 0:00:00]} Nxd4 {[%emt 0:00:36]} 30. Qxc4 {[%emt 0:00:00]} Qe5 {[%emt 0:00:18]} 31. Qd3 {[%emt 0:00:00]} Qh5 {[%emt 0:03:11][%cal Rh5h1]} 32. Ke1 {[%emt 0:00:00]} Qe5+ {[%emt 0:01:18]} 33. Kd1 {[%emt 0:00:00]} Nc6 {[%emt 0:01:13]} 34. Qe4 {[%emt 0:00:00]} Qf6 {[%emt 0:01:13]} 35. f3 {[%emt 0:00:00]} Nb4 {[%emt 0:00:54]} 36. Nc4 {[%emt 0:00:00]} g6 {[%emt 0:02:32]} 37. Ke2 {[%emt 0:00:00]} Kh7 {[%emt 0:03:04]} 38. g4 {[%emt 0:00:00]} Nc6 {[%emt 0:04:16]} 39. Kf2 {[%emt 0:00:00]} Kg7 {[%emt 0:00:55]} 40. Kg3 {[%emt 0:00:00]} g5 {[%emt 0:00:00]} 41. Kf2 {[%emt 0:00:00]} Nb4 {[%emt 0:08:10]} 42. Ke2 {[%emt 0:00:00]} Nc6 {[%emt 0:00:49]} 43. Ke3 {[%emt 0:00:00]} Kf8 {[%emt 0:00:34]} 44. Kd2 {[%emt 0:00:00]} Qd8+ {[%emt 0:04:53]} (44... a4 $11) 45. Kc3 $16 {[%emt 0:00:00]} Nb4 {[%emt 0:00:15]} 46. Ne3 $1 {[%emt 0:00:00] Prevents Nd5+. Active counter play!} Qb6 {[%emt 0:04:52]} 47. Nf5 {[%emt 0:00:00] White wants to mate with Qa8+.} Qc5+ {[%emt 0:00:50]} ({Black should try} 47... Na2+ 48. Kc4 (48. Kd3 Qb3+ 49. Ke2 Qxb2+ 50. Kf1 Qc1+ 51. Kf2 Qd2+ 52. Kg3 Qf4+ 53. Qxf4 gxf4+ 54. Kxf4 Nb4 $11) 48... Qb4+ 49. Kd5 Qb7+ 50. Kc5 Qxe4 51. fxe4 Nc1) 48. Kb3 $1 {[%emt 0:00:00] Qa8+ would kill now.} ({Don't play} 48. Qc4 $6 Na2+ 49. Kd3 Nb4+ 50. Kc3 Na2+ 51. Kd3 Nb4+ 52. Kc3 $11) 48... Nc6 {[%emt 0:00:34]} 49. Ka4 {[%emt 0:00:00] Against Qb5+} Qb6 {[%emt 0:02:44] This costs Black the game.} (49... Na7 $16 {keeps fighting.}) 50. b3 $1 $18 {[%emt 0:00:00]} Qc5 $2 {[%emt 0:01:05]} (50... f6 {is a better defense.} 51. Qc4 Ne7) 51. Qc4 {[%emt 0:00:00]} Qb6 {[%emt 0:00:03]} 52. Nxh6 {[%emt 0:00:00]} (52. Qb5 $142 Qc7 53. Qc5+ Kg8 54. Nxh6+ Kh7 55. Nxf7 $1 {[%mdl 512]} (55. Qxg5 Qb6 $11)) 52... Ne5 {[%emt 0:02:50] [#]} 53. Qc8+ {[%emt 0:00:00]} Ke7 $2 {[%emt 0:01:09]} (53... Kg7 54. Nf5+ (54. Qg8+ $2 Kxh6 55. Qh8+ Kg6 $19) 54... Kh7) 54. Nf5+ {[%emt 0:00:00]} Kf6 {[%emt 0:00:01]} 55. Qh8+ {[%emt 0:00:00]} Ke6 {[%emt 0:00:07]} 56. Qe8+ {[%emt 0:00:00]} Kd5 {[%emt 0:01:19]} 57. Qa8+ {[%emt 0:00:00]} (57. Qb5+ $142 Qxb5+ 58. Kxb5) 57... Qc6+ $2 {[%emt 0:00:06]} (57... Ke6 58. Qxa5 Qc6+ 59. Qb5 Qa8+ 60. Kb4 Qa7 61. Qe8+ Kf6 62. Qd8+ Kg6 63. Qg8+ Kf6 64. Qh8+ Ke6 65. Qc8+ Kd5 66. Qd8+ Nd7 67. Ne3+ Kd4) 58. Qxc6+ {[%emt 0:00:00]} Nxc6 {[%emt 0:00:04] KN-KN} 59. Kb5 {[%emt 0:00:00]} f6 {[%emt 0:02:03]} 60. Kb6 {[%emt 0:00:00]} Nb4 {[%emt 0:00:46]} 61. Kxa5 {[%emt 0:00:00]} Nd3 {[%emt 0:00:06]} 62. b4 {[%emt 0:00:00][%cal Bb3b4,Bb4b5,Bb5b6][%mdl 32] Strongly threatening b5.} Ne1 {[%emt 0:00:04]} 63. b5 {[%emt 0:00:00]} Nxg2 {[%emt 0:00:06]} 64. b6 {[%emt 0:00:00]} Kc6 {[%emt 0:00:07]} 65. Ka6 {[%emt 0:00:00] Weighted Error Value: White=0.24 (precise) /Black=0.34} 1-0

[Event "2nd Serbia Open Masters 2022"]
[Site "Novi Sad"]
[Date "2022.06.28"]
[Round "1.10"]
[White "Jocev, Milan"]
[Black "Adhiban, B.."]
[Result "0-1"]
[ECO "E69"]
[WhiteElo "2317"]
[BlackElo "2616"]
[Annotator "TA"]
[PlyCount "84"]
[EventDate "2022.06.28"]
[EventType "swiss"]
[EventCountry "SRB"]
[SourceTitle "playchess.com"]
[Source "ChessBase"]
[SourceQuality "1"]
[TimeControl "40/5400+30:900+30"]

{[%evp 22,84,19,-53,-6,-45,-35,-41,0,-75,-56,-77,-70,-70,-84,-64,-64,-56,-57,-79,-55,-139,-144,-141,-135,-140,-142,-225,-212,-216,-224,-272,-262,-262,-261,-257,-259,-249,-259,-307,-308,-330,-326,-336,-336,-602,-593,-588,-580,-605,-605,-597,-597,-557,-426,-581,-564,-607,-553,-657,-684,-711,-673,-690,-669]} 1. d4 {[%emt 0:00:01]} g6 {[%emt 0:00:14]} 2. Nf3 {[%emt 0:00:15]} Bg7 {[%emt 0:00:07]} 3. c4 {[%emt 0:00:20]} d6 {[%emt 0:02:49]} 4. g3 {[%emt 0:01:05]} Nf6 {[%emt 0:01:11]} 5. Nc3 {[%emt 0:00:49]} O-O {[%emt 0:01:02]} 6. Bg2 {[%emt 0:00:32]} Nbd7 {[%emt 0:00:11]} 7. O-O {[%emt 0:00:24]} e5 {[%emt 0:00:04]} 8. e4 {[%emt 0:00:31]} c6 {[%emt 0:04:07]} 9. h3 {[%emt 0:02:14]} Qb6 {[%emt 0:00:11]} 10. c5 {[%emt 0:09:28]} dxc5 {[%emt 0:00:12]} 11. dxe5 {[%emt 0:00:06]} Ne8 {[%emt 0:00:06]} 12. Bg5 {[%emt 0:01:01]} (12. Na4 $11 Qc7 13. e6 fxe6 14. Ng5) 12... Nxe5 {[%emt 0:15:41] E69: King's Indian: Fianchetto: 6...Nbd7 7 0-0 e5 8 e4 c6 9 h3.} (12... Qxb2 $15 13. Na4 Qb4) 13. Be7 {[%emt 0:07:18]} Qxb2 {[%emt 0:03:22]} 14. Rc1 {[%emt 0:05:12] Black must now prevent Nxe5.} b6 {[%emt 0:07:29][%cal Oc8a6] [#] Black is slightly better.} 15. Re1 $146 {[%emt 0:22:49] [#]} (15. Bxf8 $11 Kxf8 16. Nxe5 Bxe5 17. Rc2) ({Predecessor:} 15. Nxe5 Bxe5 16. Qc2 Qxc2 17. Rxc2 Nc7 18. Bxf8 Kxf8 19. f4 Bxc3 20. Rxc3 Nb5 21. Rcc1 {½-½ (28) Sarrau,J (2366)-Docx,S (2444) Ghent 2018}) 15... Ba6 $1 {[%emt 0:08:44][%cal Oe5d3]} 16. Nxe5 {[%emt 0:07:30]} (16. Re3 Nc4) 16... Bxe5 {[%emt 0:00:16]} 17. Qb3 {[%emt 0:00:09]} Qxb3 {[%emt 0:02:42]} 18. axb3 {[%emt 0:00:06] [#]} Nc7 $1 {[%emt 0:01:58][%cal Be8c7,Bc7e6,Be6d4][%mdl 32] Threatens to win with ...Rfe8.} 19. Bxf8 {[%emt 0:06:23]} Kxf8 {[%emt 0:00:02]} 20. Red1 {[%emt 0:09:52] Inhibits Rd8.} g5 {[%emt 0:13:22]} 21. Na4 {[%emt 0:06:56] Black continues to play with concentration.} (21. Bf1 $15) 21... Ne6 $17 {[%emt 0:06:58]} 22. Bf1 {[%emt 0:01:01]} Bb7 {[%emt 0:04:04]} 23. Bc4 {[%emt 0:03:25]} Nd4 {[%emt 0:00:40]} 24. f4 {[%emt 0:00:24]} (24. Kg2 $17) 24... gxf4 $19 {[%emt 0:06:59]} 25. gxf4 {[%emt 0:00:06]} Bxf4 {[%emt 0:00:46]} 26. Rf1 {[%emt 0:00:19]} Bxc1 {[%emt 0:00:19]} 27. Rxf7+ {[%emt 0:00:07] [#]} Kg8 $1 {[%emt 0:00:09]} (27... Ke8 28. Rxb7 Bg5 29. Rxh7 $17) 28. Rxb7+ {[%emt 0:01:15]} Kh8 {[%emt 0:00:02] Hoping for ...b5.} 29. Bf7 {[%emt 0:00:48]} Kg7 {[%emt 0:01:28]} 30. Kg2 {[%emt 0:03:47]} Kf6 {[%emt 0:01:28]} 31. Kg3 {[%emt 0:01:00]} Be3 {[%emt 0:03:53]} 32. Nb2 {[%emt 0:02:39]} Rf8 {[%emt 0:01:42]} 33. Bh5 {[%emt 0:04:27]} (33. e5+ Kxe5 34. Nc4+ Kf6 35. Nd6) 33... Rg8+ {[%emt 0:01:32] Black is clearly winning.} 34. Bg4 {[%emt 0:01:23]} h5 {[%emt 0:00:28]} 35. e5+ {[%emt 0:00:33]} Kg5 {[%emt 0:01:24]} 36. Bd1 {[%emt 0:00:42]} Kf5+ {[%emt 0:01:47]} 37. Kh2 {[%emt 0:00:12]} Bf4+ {[%emt 0:01:58]} 38. Kh1 {[%emt 0:00:05]} Rg3 {[%emt 0:00:13]} 39. Rf7+ {[%emt 0:02:59]} Kxe5 {[%emt 0:00:53]} 40. h4 {[%emt 0:00:00]} b5 {[%emt 0:00:00]} 41. Rxa7 {[%emt 0:02:12]} Bc1 {[%emt 0:05:45]} 42. Kh2 {[%emt 0:01:41]} Rc3 {[%emt 0:00:30] Weighted Error Value: White=0.34/Black=0.05 (flawless)} ({Worse is} 42... Bxb2 43. Kxg3 c4 44. bxc4 (44. Bxh5 $2 Nf5+ 45. Kh3 c3 $19) 44... bxc4 45. Ra5+ (45. Bxh5 c3 $11) 45... Kd6 46. Kf4 $11 (46. Bxh5 c3 $11)) 0-1

[Event "2nd Serbia Open Masters 2022"]
[Site "Novi Sad"]
[Date "2022.06.28"]
[Round "1.11"]
[White "Aryan Chopra"]
[Black "Isik, Alparslan"]
[Result "1-0"]
[ECO "B90"]
[WhiteElo "2609"]
[BlackElo "2316"]
[Annotator "TA"]
[PlyCount "65"]
[EventDate "2022.06.28"]
[EventType "swiss"]
[EventCountry "SRB"]
[SourceTitle "playchess.com"]
[Source "ChessBase"]
[SourceQuality "1"]
[TimeControl "40/5400+30:900+30"]

{[%evp 20,65,29,19,28,6,31,18,30,33,27,33,42,37,54,39,49,40,69,71,69,75,233,224,227,237,229,219,251,249,449,444,440,458,435,458,521,517,614,632,635,584,558,558,557,543,519,516]} 1. e4 {[%emt 0:00:02]} c5 {[%emt 0:00:07]} 2. Nf3 {[%emt 0:00:03]} d6 {[%emt 0:00:05]} 3. d4 {[%emt 0:00:04]} cxd4 {[%emt 0:00:06]} 4. Nxd4 {[%emt 0:00:04]} Nf6 {[%emt 0:00:07]} 5. Nc3 {[%emt 0:00:04]} a6 {[%emt 0:00:05]} 6. Be3 {[%emt 0:00:07]} e5 {[%emt 0:00:07]} 7. Nb3 {[%emt 0:00:09]} Be6 {[%emt 0:00:06]} 8. f3 {[%emt 0:00:17]} Be7 {[%emt 0:00:08]} 9. Qd2 {[%emt 0:00:14]} h5 {[%emt 0:00:09]} 10. Nd5 {[%emt 0:03:03]} Nxd5 {[%emt 0:00:10]} 11. exd5 {[%emt 0:00:04]} Bf5 {[%emt 0:00:07] B90: Sicilian Najdorf: Unusual White 6th moves, 6 Be3 Ng4 and 6 Be3 e5.} 12. Be2 {[%emt 0:00:08]} a5 {[%emt 0:00:22]} 13. a4 {[%emt 0:09:46]} Nd7 {[%emt 0:02:33] The position is equal. 13...0-0 gains popularity.} 14. O-O {[%emt 0:00:12]} O-O {[%emt 0:12:43]} 15. Bb5 {[%emt 0:01:12]} Qc7 {[%emt 0:10:17]} 16. Rac1 {[%emt 0:05:47]} Nf6 {[%emt 0:21:51]} 17. c4 {[%emt 0:22:13] [#]} Bd7 $146 {[%emt 0:01:11]} ({Predecessor:} 17... b6 18. f4 Bd7 19. fxe5 dxe5 20. h3 Rab8 21. Qd3 Bxb5 22. axb5 Nd7 23. Nd2 Bc5 {0-1 (47) Glaser,K (2262)-Cintins,I (2301) ICCF email 2014}) 18. Rfd1 {[%emt 0:05:15]} Bxb5 {[%emt 0:02:05]} 19. cxb5 {[%emt 0:00:11]} (19. axb5 a4 20. Na1 Rfc8 $11) 19... Qd7 {[%emt 0:03:02]} 20. Nxa5 {[%emt 0:08:19] White is more active.} Nxd5 $2 {[%emt 0:03:50] Loses the game.} 21. Qxd5 $18 {[%emt 0:00:11]} Rxa5 {[%emt 0:00:02]} 22. b3 {[%emt 0:00:20] [#] aiming for Bb6.} (22. Qxe5 Rxa4 23. Qxh5 Ra5 $11) 22... Raa8 {[%emt 0:05:32]} 23. Qxe5 {[%emt 0:01:33]} Rac8 {[%emt 0:00:35]} 24. Qd5 {[%emt 0:03:33]} (24. Qxh5 Qe6 25. Bb6 Qxb3 $16) 24... Qe6 $2 {[%emt 0:01:41]} (24... Rxc1 25. Bxc1 (25. Rxc1 Bf6 $16) 25... Bf6) 25. Qxe6 {[%emt 0:02:54] White is clearly winning.} fxe6 {[%emt 0:00:09]} 26. Rxc8 {[%emt 0:00:29]} Rxc8 {[%emt 0:00:02]} 27. Rc1 {[%emt 0:00:05] Inhibits Rc3.} Rxc1+ {[%emt 0:03:03]} 28. Bxc1 {[%emt 0:00:05] KB-KB} Bd8 {[%emt 0:04:07]} 29. b4 {[%emt 0:00:36]} b6 {[%emt 0:02:18]} 30. Be3 {[%emt 0:01:50]} Kf7 {[%emt 0:01:14]} 31. a5 {[%emt 0:00:17]} bxa5 {[%emt 0:00:08]} 32. bxa5 {[%emt 0:00:05]} Bxa5 {[%emt 0:00:05]} 33. b6 {[%emt 0:00:04] Weighted Error Value: White=0.01 (flawless) /Black=0.34} 1-0

[Event "2nd Serbia Open Masters 2022"]
[Site "Novi Sad"]
[Date "2022.06.28"]
[Round "1.12"]
[White "Martic, Ivan"]
[Black "Puranik, Abhimanyu"]
[Result "0-1"]
[ECO "C54"]
[WhiteElo "2314"]
[BlackElo "2608"]
[Annotator "TA"]
[PlyCount "106"]
[EventDate "2022.06.28"]
[EventType "swiss"]
[EventCountry "SRB"]
[SourceTitle "playchess.com"]
[Source "ChessBase"]
[SourceQuality "1"]
[TimeControl "40/5400+30:900+30"]

{[%evp 10,106,21,15,31,8,8,9,14,14,1,3,10,0,14,0,0,0,0,-17,-7,-20,-8,-7,-5,-6,0,0,0,-17,-31,-33,0,-12,37,29,41,0,0,0,0,0,0,0,0,-160,-160,-159,-149,-152,-152,-141,-102,-83,-81,-85,-67,-68,-60,-72,-66,-62,-61,-62,0,0,0,0,0,0,0,-229,-63,-139,-51,-170,-106,-124,0,0,0,0,0,0,0,-29977,-29978,-29978,-29979,-29979,-29980,-29980,-29980,-29984,-29985,-29986,-29987,-29981,-29981]} 1. e4 {[%emt 0:00:05]} e5 {[%emt 0:00:17]} 2. Nf3 {[%emt 0:00:08]} Nc6 {[%emt 0:00:04]} 3. Bc4 {[%emt 0:00:13]} Bc5 {[%emt 0:00:10]} 4. c3 {[%emt 0:00:31]} Nf6 {[%emt 0:00:17]} 5. d3 {[%emt 0:00:06]} d6 {[%emt 0:00:05]} 6. O-O {[%emt 0:00:15]} a5 {[%emt 0:00:44] C54: Giuoco Piano: 4 c3 Nf6, main lines with 5 d4 and 5 d3.} 7. a4 {[%emt 0:01:18]} h6 {[%emt 0:00:45]} 8. Re1 {[%emt 0:02:03]} O-O {[%emt 0:01:15] The position is equal.} 9. Nbd2 {[%emt 0:00:57]} Be6 {[%emt 0:01:22]} (9... Nh5 {seems wilder.} 10. Nb3 Bb6 11. d4 exd4 12. Nbxd4 Qf6) 10. Bxe6 {[%emt 0:02:26]} fxe6 {[%emt 0:00:01]} 11. Nf1 {[%emt 0:00:41] [#]} Qd7 $146 {[%emt 0:02:31]} ({Predecessor:} 11... d5 12. Be3 Bxe3 13. Rxe3 dxe4 14. dxe4 Qxd1 15. Rxd1 Rfd8 16. N1d2 Nd7 17. Ra1 Nc5 {½-½ (34) Praggnanandhaa,R (2537)-L'Ami,E (2647) Reykjavik 2019}) 12. Be3 {[%emt 0:04:21]} Bxe3 {[%emt 0:00:05]} 13. Nxe3 {[%emt 0:06:38]} Rf7 {[%emt 0:00:26]} 14. h3 {[%emt 0:05:09]} Raf8 {[%emt 0:01:41]} 15. Nh2 {[%emt 0:07:50]} Ne7 {[%emt 0:01:29]} 16. Re2 {[%emt 0:09:05]} Ng6 {[%emt 0:03:17]} 17. g3 {[%emt 0:01:33] Against Nf4} d5 {[%emt 0:09:41]} 18. Qc2 {[%emt 0:04:47]} Qc6 {[%emt 0:04:03][%cal Rd5e4]} 19. Neg4 {[%emt 0:08:05]} Nd7 {[%emt 0:13:53]} 20. h4 {[%emt 0:03:19]} h5 {[%emt 0:01:18]} 21. Ne3 {[%emt 0:00:28][%cal Bg4e3,Be3f1,Bf1e3][%mdl 32]} Nf6 {[%emt 0:05:54]} (21... Ne7 $11 {might be stronger.}) 22. Nef1 $14 {[%emt 0:01:31]} Qb6 {[%emt 0:01:04]} 23. Ne3 {[%emt 0:02:06]} c6 {[%emt 0:01:37]} 24. Rf1 {[%emt 0:03:19]} Nd7 {[%emt 0:01:15]} 25. Kg2 {[%emt 0:07:20]} Nf4+ 26. gxf4 {[%emt 0:00:08]} exf4 {[%emt 0:03:57]} 27. Nf3 $2 {[%emt 0:05:25]} fxe3 {[%emt 0:00:43]} 28. Rxe3 {[%emt 0:01:25]} Rf4 {[%emt 0:01:56]} 29. Rh1 {[%emt 0:04:10]} Rg4+ {[%emt 0:13:26]} 30. Kf1 {[%emt 0:00:11][%cal Bg2f1,Bf1e1,Be1d1,Bd1c1,Bc1b1][%mdl 32] [#]} Qxe3 $3 {[%emt 0:12:03][%mdl 512]} 31. fxe3 {[%emt 0:00:10]} Rxf3+ {[%emt 0:00:17]} 32. Ke1 {[%emt 0:00:08]} Nc5 {[%emt 0:04:56]} 33. exd5 {[%emt 0:03:27] d4 is the strong threat.} Rxe3+ {[%emt 0:00:07]} 34. Kd1 $1 {[%emt 0:01:27]} (34. Kf2 $2 Rgg3 35. Rd1 Ref3+ 36. Ke1 Rg1+ 37. Ke2 Rg2+ 38. Kxf3 Rxc2 $19) 34... Rxd3+ {[%emt 0:00:57]} 35. Kc1 {[%emt 0:00:46]} Rxd5 {[%emt 0:02:57] Black is much more active.} 36. Kb1 {[%emt 0:03:43]} e5 {[%emt 0:03:59]} (36... Nxa4 $2 37. c4 Rdd4 38. Qxa4 $18) (36... b5 $15 37. Rf1 Ne4) 37. Qf5 $11 {[%emt 0:03:59]} e4 {[%emt 0:00:57]} 38. Qc8+ {[%emt 0:00:16]} Kh7 {[%emt 0:00:04] White must now prevent ...e3.} 39. Qe8 {[%emt 0:02:01]} Rf5 {[%emt 0:04:01]} 40. c4 $2 {[%emt 0:00:00] [#]} (40. Qc8 $11 Rd5 41. Qe8) 40... Nd3 $2 {[%emt 0:00:00]} (40... Nxa4 41. Qe6 Rgf4 42. Rg1 Rf1+ 43. Rxf1 (43. Ka2 Nc3+ 44. Kb3 Rf6 $17) 43... Rxf1+ 44. Ka2 $11) (40... Rg6 $1 $19 {[%cal Rg6e6] And now ...Re6 would win.} 41. Re1 Re6) 41. b3 {[%emt 0:13:22]} (41. Qd7 $1 $15 Rff4 42. Qe7) 41... Nc5 {[%emt 0:07:43]} ({Black should play} 41... Ne5 $17 42. Qe6 Rgf4) 42. Rd1 {[%emt 0:07:13]} (42. Qc8 $1 $15 Rgf4 43. Rg1) 42... Rg2 {[%emt 0:00:09]} ({Worse is} 42... Nxb3 43. Rd8 Rxh4 44. Qh8+ Kg6 45. Qe8+ Kh7 46. Qh8+ Kg6 47. Rd7 Rf1+ 48. Kb2 Rh2+ 49. Ka3 Ra1+ 50. Kxb3 Rb1+ 51. Kc3 Rc1+ 52. Kb3 Rb1+ 53. Ka3 (53. Kc3 Rc1+ 54. Kb3 Rb1+ $11) 53... Ra1+ 54. Kb3 Rb1+ $11) (42... Rxh4 $19 43. Rg1 Rg4 44. Rxg4 hxg4) 43. Qe7 $17 {[%emt 0:01:11] [#]} Rg3 {[%emt 0:00:38]} (43... Rg6 $1 $17 {Hoping for ...Re6.} 44. Ka2 Rg4) 44. Kc2 {[%emt 0:02:28]} b6 {[%emt 0:02:34]} 45. Qe8 $1 {[%emt 0:00:57]} Rg6 {[%emt 0:05:42] aiming for ...Re6.} 46. Rd8 {[%emt 0:00:51][%csl Gd8][%cal Re8h8]} Rf2+ {[%emt 0:00:55]} 47. Kc3 $2 {[%emt 0:00:51][%mdl 8192]} (47. Rd2 $11 Rf5 48. Rd8 Rf2+ 49. Rd2 (49. Kc3 $2 Rg3+ 50. Kd4 Rd3+ 51. Ke5 Rxd8 $19)) 47... Rg3+ {[%emt 0:00:13] Black mates.} 48. Kd4 {[%emt 0:00:01]} Rd3+ {[%emt 0:01:40]} 49. Ke5 {[%emt 0:00:02]} Rxd8 {[%emt 0:00:06]} 50. Qxd8 {[%emt 0:00:04]} e3 {[%emt 0:00:07][%cal Be4e3,Be3e2][%mdl 32]} 51. Qe8 {[%emt 0:01:23]} e2 {[%emt 0:00:48]} 52. Kd6 {[%emt 0:01:01]} Rf6+ {[%emt 0:00:07]} 53. Kc7 {[%emt 0:00:25]} Ne6+ {[%emt 0:00:49] Weighted Error Value: White=0.32/Black=0.21 (precise)} 0-1

[Event "2nd Serbia Open Masters 2022"]
[Site "Novi Sad"]
[Date "2022.06.28"]
[Round "1.13"]
[White "Can, Emre"]
[Black "Anand, Batsukh"]
[Result "1-0"]
[ECO "B24"]
[WhiteElo "2599"]
[BlackElo "2312"]
[Annotator "TA"]
[PlyCount "67"]
[EventDate "2022.06.28"]
[EventType "swiss"]
[EventCountry "SRB"]
[SourceTitle "playchess.com"]
[Source "ChessBase"]
[SourceQuality "1"]
[TimeControl "40/5400+30:900+30"]

{[%evp 9,67,7,0,2,4,2,4,-19,-8,-18,18,31,22,25,52,25,83,70,102,44,50,71,62,43,77,76,85,89,100,86,142,117,129,85,117,122,99,80,204,102,167,165,156,80,300,320,314,171,620,620,5606,5543,5527,5527,5477,314,5461,5421,5414,5414]} 1. e4 {[%emt 0:00:04]} c5 {[%emt 0:00:07]} 2. Nc3 {[%emt 0:00:20]} e6 {[%emt 0:00:27]} 3. g3 {[%emt 0:00:49]} a6 {[%emt 0:01:09]} 4. Bg2 {[%emt 0:01:00]} Nc6 {[%emt 0:02:22]} 5. Nh3 {[%emt 0:01:37]} Nf6 {[%emt 0:06:57]} 6. O-O {[%emt 0:00:40] B24: Closed Sicilian: 3 g3 sidelines.} Be7 {[%emt 0:01:16]} 7. d3 {[%emt 0:03:34]} O-O {[%emt 0:04:03]} 8. g4 {[%emt 0:07:23][%cal Bg3g4,Bg4g5][%mdl 32] The position is equal.} d6 {[%emt 0:06:22]} 9. f4 {[%emt 0:03:56]} Re8 {[%emt 0:02:28]} 10. g5 {[%emt 0:07:19]} Nd7 {[%emt 0:00:07] [#]} 11. Ne2 $146 {[%emt 0:02:02]} ({Predecessor:} 11. Be3 Nf8 12. Qf3 f5 13. exf5 exf5 14. Nd5 Be6 15. Qg3 {½-½ (49) Masovic,S (2061)-Zarkovic,M (1829) Belgrade 2008}) 11... b5 {[%emt 0:12:31]} 12. Ng3 {[%emt 0:11:17]} Bf8 {[%emt 0:04:46]} (12... Rb8 $11 {keeps the balance.}) 13. Nf2 {[%emt 0:06:42]} Nb6 {[%emt 0:07:31]} 14. f5 {[%emt 0:03:50]} (14. Qh5 $16) 14... exf5 $14 {[%emt 0:10:17]} 15. exf5 {[%emt 0:00:58]} d5 {[%emt 0:00:14]} 16. c3 {[%emt 0:02:57]} Ne5 {[%emt 0:05:35]} 17. d4 {[%emt 0:04:09]} Nec4 {[%emt 0:01:56]} 18. Ng4 {[%emt 0:06:18] Inhibits Ne3.} cxd4 {[%emt 0:06:54]} 19. cxd4 {[%emt 0:00:31]} (19. Qxd4 Qc7 20. Kh1 Bc5) 19... Bb7 {[%emt 0:02:03]} (19... a5 $142) 20. Qd3 {[%emt 0:06:12]} Nd6 {[%emt 0:10:04]} 21. g6 {[%emt 0:03:39]} Nd7 {[%emt 0:04:01]} 22. gxh7+ {[%emt 0:02:22]} Kh8 {[%emt 0:00:05]} 23. f6 $1 {[%emt 0:01:46]} g6 {[%emt 0:02:03]} (23... Qb6 $16) 24. Bg5 {[%emt 0:01:58]} (24. Nh6 $18 {[%cal Oh6f7] Nxf7+! is the strong threat.} Kxh7 25. Ne4 $1 (25. Ng4 Qb6 $11) 25... Nxe4 26. Qh3 Ndxf6 27. Nxf7+ Kg8 28. Nxd8 Raxd8 29. Qh4) 24... Ne4 {[%emt 0:02:14]} (24... Qc7 $16) 25. Nxe4 $18 {[%emt 0:02:28]} dxe4 {[%emt 0:00:06]} 26. Qe3 {[%emt 0:00:27] White is much more active.} ({Better is} 26. Qb3 $1 {[%cal Rb3f7]} Re6 27. Bh3) 26... Nb6 $2 {[%emt 0:00:46] [#]} (26... Re6 $16) 27. Bh6 $1 {[%emt 0:02:20] aiming for Bxf8.} Nc4 {[%emt 0:03:01]} 28. Qh3 {[%emt 0:03:11] Really sharp!} (28. Bg7+ Bxg7 29. fxg7+ Kxg7 $11) (28. Qg5 $142 Re6 29. b3 (29. Bg7+ Bxg7 30. fxg7+ Kxg7 $11)) 28... Qxd4+ $2 {[%emt 0:01:26] [#]} (28... Qd6) 29. Kh1 $1 {[%emt 0:00:07]} Qd6 {[%emt 0:02:13]} 30. Bg7+ {[%emt 0:01:29]} Bxg7 {[%emt 0:00:07]} 31. fxg7+ {[%emt 0:00:04][%mdl 64] Discovered Attack} Kxg7 {[%emt 0:00:06]} 32. Qh6+ {[%emt 0:00:04][%mdl 64] Deflection} Kh8 {[%emt 0:00:10] Hoping for ...f5.} 33. Rxf7 {[%emt 0:00:06][%csl Gf7][%cal Rh6g7]} Qd4 {[%emt 0:01:04] Inhibits Qg7+.} 34. Nf6 {[%emt 0:00:15] Weighted Error Value: White=0.19 (very precise) /Black=0.55} 1-0